fUSD/lending_fUSD_20251006
["ID","MTS","AMOUNT","RATE_DAILY","PERIOD"]
[389593567,1759735613437,-4117.0,0.00015423,2]
[389593568,1759735613460,-621.0,0.00015423,2]
[389593569,1759735613482,-900.0,0.00015423,2]
[389593570,1759735613505,-1183.535,0.00015423,2]
[389593571,1759735613528,-1695.0,0.00015423,2]
[389593572,1759735613549,-2549.501,0.00015423,2]
[389593573,1759735613573,-262.95225638,0.00015472,2]
[389593574,1759735613596,-625.35805405,0.00015472,2]
[389593575,1759735613618,-637.0,0.000155,2]
[389593576,1759735613643,-300.0,0.0001552,2]
[389593577,1759735613665,-1000.0,0.00015521,2]
[389593578,1759735613688,-1000.0,0.00015521,2]
[389593579,1759735613710,-500.56188496,0.00015521,2]
[389593580,1759735613734,-1000.0,0.00015521,2]
[389593581,1759735613756,-1000.0,0.00015521,2]
[389593582,1759735613779,-1000.0,0.00015521,2]
[389593583,1759735613804,-1000.0,0.00015521,2]
[389593584,1759735613828,-414.33137152,0.00015521,2]
[389593585,1759735613856,-318.42531835,0.00015521,2]
[389593586,1759735613880,-1000.0,0.00015521,2]
[389593587,1759735613904,-1000.0,0.00015521,2]
[389593588,1759735613928,-1000.0,0.00015521,2]
[389593589,1759735613951,-1000.0,0.00015521,2]
[389593590,1759735613974,-1000.0,0.00015521,2]
[389593591,1759735613998,-1000.0,0.00015521,2]
[389593592,1759735614022,-733.46639772,0.00015521,2]
[389593593,1759735614047,-1000.0,0.00015521,2]
[389593594,1759735614073,-345.99838906,0.00015521,2]
[389593595,1759735614098,-500.0,0.00015521,2]
[389593596,1759735614123,-1185.0,0.00015521,2]
[389593597,1759735614148,-150.0,0.00015521,2]
[389593598,1759735614173,-500.0,0.00015521,2]
[389593599,1759735614200,-500.0,0.00015521,2]
[389593600,1759735614222,-454.0,0.00015521,2]
[389593601,1759735614245,-644.0,0.00015521,2]
[389593602,1759735614268,-426.0,0.00015521,2]
[389593603,1759735614290,-609.0,0.00015521,2]
[389593604,1759735614312,-528.0,0.00015521,2]
[389593605,1759735614339,-2039.0,0.00015521,2]
[389593606,1759735614362,-239.84119403,0.00015577,2]
[389593607,1759735614386,-410.00564641,0.00015635,2]
[389593608,1759735614410,-262.95225638,0.00015646,2]
[389593609,1759735614434,-625.35805405,0.00015646,2]
[389593610,1759735614456,-159.68886,0.0001566,2]
[389593611,1759735614482,-370.68887098,0.00015711,2]
[389593612,1759735614506,-500.0,0.00015712,2]
[389593613,1759735614529,-169.4356582,0.00015719,3]
[389593614,1759735614554,-300.0,0.00015725,2]
[389593615,1759735614578,-1600.0,0.00015743,2]
[389593616,1759735614602,-500.0,0.00015795,2]
[389593617,1759735614627,-1185.0,0.00015795,2]
[389593618,1759735614651,-150.0,0.00015795,2]
[389593619,1759735614675,-500.0,0.00015795,2]
[389593620,1759735614699,-500.0,0.00015795,2]
[389593621,1759735614723,-454.0,0.00015795,2]
[389593622,1759735614746,-644.0,0.00015795,2]
[389593623,1759735614772,-426.0,0.00015795,2]
[389593624,1759735614797,-609.0,0.00015795,2]
[389593625,1759735614821,-528.0,0.00015795,2]
[389593626,1759735614848,-2039.0,0.00015795,2]
[389593627,1759735614878,-262.95225638,0.00015819,2]
[389593628,1759735614905,-625.35805405,0.00015819,2]
[389593629,1759735614932,-255.0,0.00015902,2]
[389593630,1759735614955,-500.0,0.00015968,2]
[389593631,1759735614984,-500.0,0.00015968,2]
[389593632,1759735615007,-504.0,0.00015968,2]
[389593633,1759735615032,-622.84785925,0.00015968,2]
[389593634,1759735615070,-158.98,0.00015974,2]
[389593635,1759735615100,-300.0,0.00015978,2]
[389593636,1759735615127,-262.95225638,0.00015992,2]
[389593637,1759735615153,-625.35805405,0.00015992,2]
[389593638,1759735615179,-1082.61416928,0.00016,5]
[389593639,1759735615206,-300.0,0.00016055,2]
[389593640,1759735615233,-300.0,0.00016059,2]
[389593641,1759735615257,-1500.0,0.00016068,2]
[389593642,1759735615284,-1500.0,0.00016068,2]
[389593643,1759735615310,-1500.0,0.00016068,2]
[389593644,1759735615335,-500.59436498,0.00016068,2]
[389593645,1759735615358,-1334.18170033,0.00016068,2]
[389593646,1759735615383,-1500.0,0.00016068,2]
[389593647,1759735615408,-314.89598252,0.00016068,2]
[389593648,1759735615432,-189.14859866,0.00016068,2]
[389593649,1759735615455,-1500.0,0.00016068,2]
[389593650,1759735615479,-1500.0,0.00016068,2]
[389593651,1759735615504,-1397.42797403,0.00016068,2]
[389593652,1759735615533,-1492.02192993,0.00016068,2]
[389593653,1759735615559,-500.0,0.00016069,2]
[389593654,1759735615584,-1185.0,0.00016069,2]
[389593655,1759735615609,-249.80287011,0.00016069,2]
[389593656,1759735615634,-500.0,0.00016069,2]
[389593657,1759735615658,-500.0,0.00016069,2]
[389593658,1759735615683,-454.0,0.00016069,2]
[389593659,1759735615707,-644.0,0.00016069,2]
[389593660,1759735615736,-426.0,0.00016069,2]
[389593661,1759735615762,-609.0,0.00016069,2]
[389593662,1759735615787,-528.0,0.00016069,2]
[389593663,1759735615812,-2039.0,0.00016069,2]
[389593664,1759735615840,-150.0,0.0001613,2]
[389593665,1759735615867,-334.5472959,0.0001614,2]
[389593666,1759735615894,-159.68885,0.0001616,2]
[389593667,1759735615922,-262.95225638,0.00016165,2]
[389593668,1759735615950,-625.35805405,0.00016165,2]
[389593669,1759735615976,-2500.0,0.00016233,3]
[389593670,1759735616003,-11187.2765801,0.00016238,2]
[389593671,1759735616037,-300.0,0.00016239,2]
[389593672,1759735616063,-2500.0,0.00016242,3]
[389593673,1759735616089,-2500.0,0.0001625,3]
[389593674,1759735616116,-2500.0,0.00016259,3]
[389593675,1759735616145,-1565.09728529,0.00016329,7]
[389593676,1759735616172,-262.95225638,0.00016338,2]
[389593677,1759735616199,-625.35805405,0.00016338,2]
[389593678,1759735616225,-970.8023776,0.00016338,2]
[389593679,1759735616251,-500.0,0.00016343,2]
[389593680,1759735616279,-1185.0,0.00016343,2]
[389593681,1759735616305,-500.0,0.00016343,2]
[389593682,1759735616331,-500.0,0.00016343,2]
[389593683,1759735616358,-454.0,0.00016343,2]
[389593684,1759735616716,-644.0,0.00016343,2]
[389593685,1759735616739,-426.0,0.00016343,2]
[389593686,1759735616763,-609.0,0.00016343,2]
[389593687,1759735616786,-528.0,0.00016343,2]
[389593688,1759735616808,-2039.0,0.00016343,2]
[389593689,1759735616832,-2500.0,0.00016382,3]
[389593690,1759735616858,-2500.0,0.00016391,3]
[389593691,1759735616887,-370.68887098,0.000164,3]
[389593692,1759735616911,-5800.0,0.000164,2]
[389593693,1759735616934,-439.15983578,0.000164,3]
[389593694,1759735616958,-2500.0,0.000164,3]
[389593695,1759735616981,-500.0,0.00016438,2]
[389593696,1759735617004,-500.0,0.00016438,2]
[389593697,1759735617027,-500.0,0.00016438,2]
[389593698,1759735617050,-500.0,0.00016438,2]
[389593699,1759735617075,-500.0,0.00016438,2]
[389593700,1759735617097,-500.0,0.00016438,2]
[389593701,1759735617119,-500.0,0.00016438,2]
[389593702,1759735617142,-608.75649496,0.00016438,2]
[389593703,1759735617165,-500.0,0.00016438,2]
[389593704,1759735617189,-500.0,0.00016438,2]
[389593705,1759735617212,-500.0,0.00016438,2]
[389593706,1759735617235,-500.0,0.00016438,2]
[389593707,1759735617260,-500.0,0.00016438,2]
[389593708,1759735617284,-500.0,0.00016438,2]
[389593709,1759735617309,-500.0,0.00016438,2]
[389593710,1759735617332,-500.0,0.00016438,2]
[389593711,1759735617354,-500.0,0.00016438,2]
[389593712,1759735617380,-261.41734654,0.00016438,2]
[389593713,1759735617402,-500.0,0.00016438,2]
[389593714,1759735617426,-500.0,0.00016438,2]
[389593715,1759735617459,-500.0,0.00016438,2]
[389593716,1759735617485,-500.0,0.00016438,2]
[389593717,1759735617509,-500.0,0.00016438,2]
[389593718,1759735617534,-500.0,0.00016438,2]
[389593719,1759735617559,-500.0,0.00016438,2]
[389593720,1759735617582,-500.0,0.00016438,2]
[389593721,1759735617606,-294.82938277,0.00016438,2]
[389593722,1759735617632,-500.0,0.00016438,2]
[389593723,1759735617659,-500.0,0.00016438,2]
[389593724,1759735617690,-500.0,0.00016438,2]
[389593725,1759735617717,-500.0,0.00016438,2]
[389593726,1759735617744,-500.0,0.00016438,2]
[389593727,1759735617770,-500.0,0.00016438,2]
[389593728,1759735617795,-500.0,0.00016438,2]
[389593729,1759735617822,-374.70042464,0.00016438,2]
[389593730,1759735617851,-500.0,0.00016438,2]
[389593731,1759735617877,-500.0,0.00016438,2]
[389593732,1759735617903,-532.89922326,0.00016438,2]
[389593733,1759735617929,-500.0,0.00016438,2]
[389593734,1759735617955,-500.0,0.00016438,2]
[389593735,1759735617981,-500.0,0.00016438,2]
[389593736,1759735618007,-500.0,0.00016438,2]
[389593737,1759735618035,-500.0,0.00016438,2]
[389593738,1759735618064,-500.0,0.00016438,2]
[389593739,1759735618091,-500.0,0.00016438,2]
[389593740,1759735618118,-500.0,0.00016438,2]
[389593741,1759735618145,-500.0,0.00016438,2]
[389593742,1759735618170,-500.0,0.00016438,2]
[389593743,1759735618193,-500.0,0.00016438,2]
[389593744,1759735618216,-500.0,0.00016438,2]
[389593745,1759735618240,-500.0,0.00016438,2]
[389593746,1759735618264,-212.75331741,0.00016438,2]
[389593747,1759735618288,-500.0,0.00016438,2]
[389593748,1759735618313,-500.0,0.00016438,2]
[389593749,1759735618339,-500.0,0.00016438,2]
[389593750,1759735618365,-500.0,0.00016438,2]
[389593751,1759735618391,-500.0,0.00016438,2]
[389593752,1759735618416,-500.0,0.00016438,2]
[389593753,1759735618441,-500.0,0.00016438,2]
[389593754,1759735618467,-500.0,0.00016438,2]
[389593755,1759735618492,-500.0,0.00016438,2]
[389593756,1759735618517,-501.67426316,0.00016438,2]
[389593757,1759735618543,-500.0,0.00016438,2]
[389593758,1759735618569,-500.0,0.00016438,2]
[389593759,1759735618594,-500.0,0.00016438,2]
[389593760,1759735618619,-500.0,0.00016438,2]
[389593761,1759735618645,-500.0,0.00016438,2]
[389593762,1759735618670,-500.0,0.00016438,2]
[389593763,1759735618696,-500.0,0.00016438,2]
[389593764,1759735618721,-500.0,0.00016438,2]
[389593765,1759735618747,-500.0,0.00016438,2]
[389593766,1759735618773,-500.0,0.00016438,2]
[389593767,1759735618801,-325.73030356,0.00016438,2]
[389593768,1759735618832,-500.0,0.00016438,2]
[389593769,1759735618863,-500.0,0.00016438,2]
[389593770,1759735618887,-500.0,0.00016438,2]
[389593771,1759735618912,-500.0,0.00016438,2]
[389593772,1759735618937,-500.0,0.00016438,2]
[389593773,1759735618960,-500.0,0.00016438,2]
[389593774,1759735618983,-501.48715931,0.00016438,2]
[389593775,1759735619006,-507.3378289,0.00016438,2]
[389593776,1759735619030,-260.64632072,0.00016438,2]
[389593777,1759735619053,-498.34164463,0.00016438,2]
[389593778,1759735619077,-467.07279985,0.00016438,2]
[389593779,1759735619101,-502.37,0.00016438,2]
[389593780,1759735619124,-502.37,0.00016438,2]
[389593781,1759735619148,-502.37,0.00016438,2]
[389593782,1759735619170,-502.37,0.00016438,2]
[389593783,1759735619194,-502.37,0.00016438,2]
[389593784,1759735619216,-502.37,0.00016438,2]
[389593785,1759735619238,-502.37,0.00016438,2]
[389593786,1759735619260,-502.37,0.00016438,2]
[389593787,1759735619283,-502.37,0.00016438,2]
[389593788,1759735619308,-502.37,0.00016438,2]
[389593789,1759735619330,-502.37,0.00016438,2]
[389593790,1759735619351,-502.37,0.00016438,2]
[389593791,1759735619378,-502.37,0.00016438,2]
[389593792,1759735619401,-502.37,0.00016438,2]
[389593793,1759735619425,-502.37,0.00016438,2]
[389593794,1759735619448,-502.37,0.00016438,2]
[389593795,1759735619482,-502.37,0.00016438,2]
[389593796,1759735619505,-502.37,0.00016438,2]
[389593797,1759735619530,-502.37,0.00016438,2]
[389593798,1759735619553,-502.37,0.00016438,2]
[389593799,1759735619576,-502.37,0.00016438,2]
[389593800,1759735619599,-502.37,0.00016438,2]
[389593801,1759735619625,-502.37,0.00016438,2]
[389593802,1759735619651,-502.59251326,0.00016438,2]
[389593803,1759735619674,-1586.54,0.00016438,2]
[389593804,1759735619698,-1586.54,0.00016438,2]
[389593805,1759735619722,-1586.54,0.00016438,2]
[389593806,1759735619745,-1586.54,0.00016438,2]
[389593807,1759735619769,-1586.54,0.00016438,2]
[389593808,1759735619793,-1586.54,0.00016438,2]
[389593809,1759735619816,-1586.54,0.00016438,2]
[389593810,1759735619844,-1586.54,0.00016438,2]
[389593811,1759735619879,-1586.54,0.00016438,2]
[389593812,1759735619910,-1586.54,0.00016438,2]
[389593813,1759735619940,-1586.54,0.00016438,2]
[389593814,1759735619969,-1586.54,0.00016438,2]
[389593815,1759735620000,-1586.54,0.00016438,2]
[389593816,1759735620033,-1586.54,0.00016438,2]
[389593817,1759735620067,-1586.54,0.00016438,2]
[389593818,1759735620096,-1586.54,0.00016438,2]
[389593819,1759735620125,-1586.54,0.00016438,2]
[389593820,1759735620156,-1586.54,0.00016438,2]
[389593821,1759735620187,-1586.54,0.00016438,2]
[389593822,1759735620217,-1586.54,0.00016438,2]
[389593823,1759735620247,-1586.54,0.00016438,2]
[389593824,1759735620277,-1586.54,0.00016438,2]
[389593825,1759735620309,-1586.54,0.00016438,2]
[389593826,1759735620338,-1586.58158657,0.00016438,2]
[389593827,1759735620366,-500.0,0.00016438,2]
[389593828,1759735620396,-500.0,0.00016438,2]
[389593829,1759735620427,-500.0,0.00016438,2]
[389593830,1759735620455,-500.0,0.00016438,2]
[389593831,1759735620481,-500.0,0.00016438,2]
[389593832,1759735620510,-500.0,0.00016438,2]
[389593833,1759735620540,-208.37394473,0.00016438,2]
[389593834,1759735620566,-595.58,0.00016438,2]
[389593835,1759735620592,-595.58,0.00016438,2]
[389593836,1759735620622,-595.58,0.00016438,2]
[389593837,1759735620653,-595.58,0.00016438,2]
[389593838,1759735620683,-595.58,0.00016438,2]
[389593839,1759735620711,-595.58,0.00016438,2]
[389593840,1759735620737,-595.58,0.00016438,2]
[389593841,1759735620763,-595.58,0.00016438,2]
[389593842,1759735620790,-595.58,0.00016438,2]
[389593843,1759735620818,-595.58,0.00016438,2]
[389593844,1759735620849,-595.58,0.00016438,2]
[389593845,1759735620878,-595.58,0.00016438,2]
[389593846,1759735620908,-595.58,0.00016438,2]
[389593847,1759735620938,-595.58,0.00016438,2]
[389593848,1759735620966,-595.58,0.00016438,2]
[389593849,1759735620994,-595.58,0.00016438,2]
[389593850,1759735621021,-595.58,0.00016438,2]
[389593851,1759735621049,-595.58,0.00016438,2]
[389593852,1759735621076,-595.58,0.00016438,2]
[389593853,1759735621104,-595.58,0.00016438,2]
[389593854,1759735621131,-595.58,0.00016438,2]
[389593855,1759735621160,-595.58,0.00016438,2]
[389593856,1759735621187,-595.58,0.00016438,2]
[389593857,1759735621214,-595.76758239,0.00016438,2]
[389593858,1759735621241,-500.0,0.00016438,2]
[389593859,1759735621267,-500.0,0.00016438,2]
[389593860,1759735621293,-500.0,0.00016438,2]
[389593861,1759735621320,-500.0,0.00016438,2]
[389593862,1759735621346,-500.0,0.00016438,2]
[389593863,1759735621373,-572.52,0.00016438,2]
[389593864,1759735621399,-500.0,0.00016438,2]
[389593865,1759735621425,-500.0,0.00016438,2]
[389593866,1759735621451,-501.52494022,0.00016438,2]
[389593867,1759735621478,-500.0,0.00016438,2]
[389593868,1759735621504,-503.56005544,0.00016438,2]
[389593869,1759735621531,-500.0,0.00016438,2]
[389593870,1759735621557,-347.41929425,0.00016438,2]
[389593871,1759735621583,-500.0,0.00016438,2]
[389593872,1759735621610,-500.0,0.00016438,2]
[389593873,1759735621637,-500.0,0.00016438,2]
[389593874,1759735621664,-500.0,0.00016438,2]
[389593875,1759735621694,-500.0,0.00016438,2]
[389593876,1759735621719,-500.0,0.00016438,2]
[389593877,1759735621746,-500.0,0.00016438,2]
[389593878,1759735621772,-500.0,0.00016438,2]
[389593879,1759735621799,-500.0,0.00016438,2]
[389593880,1759735621825,-500.0,0.00016438,2]
[389593881,1759735621856,-500.0,0.00016438,2]
[389593882,1759735621883,-500.0,0.00016438,2]
[389593883,1759735621910,-500.0,0.00016438,2]
[389593884,1759735621941,-500.0,0.00016438,2]
[389593885,1759735621971,-509.8369625,0.00016438,2]
[389593886,1759735621999,-220.39256975,0.00016438,2]
[389593887,1759735622026,-500.0,0.00016438,2]
[389593888,1759735622053,-500.0,0.00016438,2]
[389593889,1759735622082,-500.0,0.00016438,2]
[389593890,1759735622109,-500.0,0.00016438,2]
[389593891,1759735622139,-500.0,0.00016438,2]
[389593892,1759735622168,-500.0,0.00016438,2]
[389593893,1759735622196,-500.0,0.00016438,2]
[389593894,1759735622227,-500.0,0.00016438,2]
[389593895,1759735622254,-500.0,0.00016438,2]
[389593896,1759735622281,-436.57766413,0.00016438,2]
[389593897,1759735622309,-500.0,0.00016438,2]
[389593898,1759735622335,-174.96762133,0.00016438,2]
[389593899,1759735622361,-500.0,0.00016438,2]
[389593900,1759735622387,-500.0,0.00016438,2]
[389593901,1759735622414,-500.0,0.00016438,2]
[389593902,1759735622440,-500.0,0.00016438,2]
[389593903,1759735622466,-500.0,0.00016438,2]
[389593904,1759735622494,-500.0,0.00016438,2]
[389593905,1759735622523,-500.0,0.00016438,2]
[389593906,1759735622552,-500.0,0.00016438,2]
[389593907,1759735622578,-500.0,0.00016438,2]
[389593908,1759735622606,-500.29127146,0.00016438,2]
[389593909,1759735622637,-500.0,0.00016438,2]
[389593910,1759735622665,-500.0,0.00016438,2]
[389593911,1759735622694,-320.99767355,0.00016438,2]
[389593912,1759735622721,-502.0013297,0.00016438,2]
[389593913,1759735622747,-500.0,0.00016438,2]
[389593914,1759735622776,-376.13227542,0.00016438,2]
[389593915,1759735622802,-500.0,0.00016438,2]
[389593916,1759735622832,-502.65914023,0.00016438,2]
[389593917,1759735622860,-500.0,0.00016438,2]
[389593918,1759735622889,-502.63554322,0.00016438,2]
[389593919,1759735622918,-500.0,0.00016438,2]
[389593920,1759735622947,-503.45776545,0.00016438,2]
[389593921,1759735622975,-500.0,0.00016438,2]
[389593922,1759735623003,-500.0,0.00016438,2]
[389593923,1759735623029,-500.0,0.00016438,2]
[389593924,1759735623056,-500.0,0.00016438,2]
[389593925,1759735623084,-500.0,0.00016438,2]
[389593926,1759735623111,-500.0,0.00016438,2]
[389593927,1759735623141,-500.0,0.00016438,2]
[389593928,1759735623169,-513.48782394,0.00016438,2]
[389593929,1759735623197,-500.0,0.00016438,2]
[389593930,1759735623223,-500.0,0.00016438,2]
[389593931,1759735623251,-500.0,0.00016438,2]
[389593932,1759735623279,-500.0,0.00016438,2]
[389593933,1759735623306,-500.0,0.00016438,2]
[389593934,1759735623333,-500.0,0.00016438,2]
[389593935,1759735623736,-500.0,0.00016438,2]
[389593936,1759735623783,-500.0,0.00016438,2]
[389593937,1759735623807,-394.368666,0.00016438,2]
[389593938,1759735623836,-500.0,0.00016438,2]
[389593939,1759735623861,-500.0,0.00016438,2]
[389593940,1759735623888,-500.0,0.00016438,2]
[389593941,1759735623914,-500.0,0.00016438,2]
[389593942,1759735623939,-500.0,0.00016438,2]
[389593943,1759735623963,-500.0,0.00016438,2]
[389593944,1759735623987,-324.17627728,0.00016438,2]
[389593945,1759735624012,-500.0,0.00016438,2]
[389593946,1759735624038,-500.0,0.00016438,2]
[389593947,1759735624062,-500.0,0.00016438,2]
[389593948,1759735624086,-500.0,0.00016438,2]
[389593949,1759735624109,-500.0,0.00016438,2]
[389593950,1759735624134,-500.0,0.00016438,2]
[389593951,1759735624161,-500.0,0.00016438,2]
[389593952,1759735624185,-500.0,0.00016438,2]
[389593953,1759735624208,-500.0,0.00016438,2]
[389593954,1759735624232,-500.0,0.00016438,2]
[389593955,1759735624256,-500.0,0.00016438,2]
[389593956,1759735624279,-500.0,0.00016438,2]
[389593957,1759735624302,-500.0,0.00016438,2]
[389593958,1759735624326,-500.0,0.00016438,2]
[389593959,1759735624348,-500.0,0.00016438,2]
[389593960,1759735624372,-500.0,0.00016438,2]
[389593961,1759735624396,-500.0,0.00016438,2]
[389593962,1759735624421,-428.67888565,0.00016438,2]
[389593963,1759735624444,-500.0,0.00016438,2]
[389593964,1759735624468,-500.0,0.00016438,2]
[389593965,1759735624493,-500.0,0.00016438,2]
[389593966,1759735624517,-500.0,0.00016438,2]
[389593967,1759735624542,-500.0,0.00016438,2]
[389593968,1759735624566,-500.0,0.00016438,2]
[389593969,1759735624589,-500.0,0.00016438,2]
[389593970,1759735624613,-500.0,0.00016438,2]
[389593971,1759735624637,-500.0,0.00016438,2]
[389593972,1759735624662,-500.0,0.00016438,2]
[389593973,1759735624687,-376.4,0.00016438,2]
[389593974,1759735624710,-500.0,0.00016438,2]
[389593975,1759735624735,-500.0,0.00016438,2]
[389593976,1759735624760,-500.0,0.00016438,2]
[389593977,1759735624783,-428.60504412,0.00016438,2]
[389593978,1759735624807,-500.8343624,0.00016438,2]
[389593979,1759735624835,-500.0,0.00016438,2]
[389593980,1759735624859,-500.0,0.00016438,2]
[389593981,1759735624886,-500.0,0.00016438,2]
[389593982,1759735624911,-1231.37,0.00016438,2]
[389593983,1759735624936,-1231.37,0.00016438,2]
[389593984,1759735624962,-1180.07,0.00016438,2]
[389593985,1759735624986,-1231.37,0.00016438,2]
[389593986,1759735625012,-1180.07,0.00016438,2]
[389593987,1759735625039,-1180.07,0.00016438,2]
[389593988,1759735625065,-1180.07,0.00016438,2]
[389593989,1759735625094,-1180.07,0.00016438,2]
[389593990,1759735625121,-1180.07,0.00016438,2]
[389593991,1759735625148,-1180.07,0.00016438,2]
[389593992,1759735625174,-1180.07,0.00016438,2]
[389593993,1759735625200,-1180.07,0.00016438,2]
[389593994,1759735625227,-1180.07,0.00016438,2]
[389593995,1759735625252,-1180.07,0.00016438,2]
[389593996,1759735625275,-1180.07,0.00016438,2]
[389593997,1759735625300,-1180.07,0.00016438,2]
[389593998,1759735625326,-1180.07,0.00016438,2]
[389593999,1759735625352,-1180.07,0.00016438,2]
[389594000,1759735625378,-1180.07,0.00016438,2]
[389594001,1759735625403,-1180.07,0.00016438,2]
[389594002,1759735625429,-1180.07,0.00016438,2]
[389594003,1759735625454,-1180.07,0.00016438,2]
[389594004,1759735625480,-1180.07,0.00016438,2]
[389594005,1759735625505,-1180.07,0.00016438,2]
[389594006,1759735625531,-500.0,0.00016438,2]
[389594007,1759735625555,-500.0,0.00016438,2]
[389594008,1759735625580,-507.00689545,0.00016438,2]
[389594009,1759735625605,-500.0,0.00016438,2]
[389594010,1759735625632,-500.0,0.00016438,2]
[389594011,1759735625657,-472.19199022,0.00016438,2]
[389594012,1759735625681,-500.0,0.00016438,2]
[389594013,1759735625705,-500.0,0.00016438,2]
[389594014,1759735625730,-500.0,0.00016438,2]
[389594015,1759735625754,-500.0,0.00016438,2]
[389594016,1759735625777,-500.0,0.00016438,2]
[389594017,1759735625802,-500.0,0.00016438,2]
[389594018,1759735625826,-500.0,0.00016438,2]
[389594019,1759735625854,-500.0,0.00016438,2]
[389594020,1759735625881,-500.0,0.00016438,2]
[389594021,1759735625909,-501.73454841,0.00016438,2]
[389594022,1759735625938,-500.0,0.00016438,2]
[389594023,1759735625965,-500.0,0.00016438,2]
[389594024,1759735625993,-500.0,0.00016438,2]
[389594025,1759735626019,-584.48490767,0.00016438,2]
[389594026,1759735626048,-292.29246159,0.00016438,2]
[389594027,1759735626075,-500.0,0.00016438,2]
[389594028,1759735626100,-476.86860006,0.00016438,2]
[389594029,1759735626129,-501.29275974,0.00016438,2]
[389594030,1759735626157,-533.59,0.00016438,2]
[389594031,1759735626184,-533.59,0.00016438,2]
[389594032,1759735626213,-533.59,0.00016438,2]
[389594033,1759735626241,-533.59,0.00016438,2]
[389594034,1759735626269,-533.59,0.00016438,2]
[389594035,1759735626295,-533.59,0.00016438,2]
[389594036,1759735626320,-533.59,0.00016438,2]
[389594037,1759735626346,-500.0,0.00016438,2]
[389594038,1759735626371,-533.59,0.00016438,2]
[389594039,1759735626398,-228.81384963,0.00016438,2]
[389594040,1759735626423,-533.59,0.00016438,2]
[389594041,1759735626448,-533.59,0.00016438,2]
[389594042,1759735626473,-533.59,0.00016438,2]
[389594043,1759735626499,-533.59,0.00016438,2]
[389594044,1759735626524,-533.59,0.00016438,2]
[389594045,1759735626550,-533.59,0.00016438,2]
[389594046,1759735626580,-533.59,0.00016438,2]
[389594047,1759735626605,-500.0,0.00016438,2]
[389594048,1759735626631,-533.59,0.00016438,2]
[389594049,1759735626655,-500.0,0.00016438,2]
[389594050,1759735626681,-533.59,0.00016438,2]
[389594051,1759735626707,-508.70399995,0.00016438,2]
[389594052,1759735626735,-533.59,0.00016438,2]
[389594053,1759735626764,-533.59,0.00016438,2]
[389594054,1759735626791,-533.59,0.00016438,2]
[389594055,1759735626820,-533.59,0.00016438,2]
[389594056,1759735626851,-533.59,0.00016438,2]
[389594057,1759735626879,-533.59,0.00016438,2]
[389594058,1759735626906,-533.61003315,0.00016438,2]
[389594059,1759735626934,-500.64383224,0.00016438,2]
[389594060,1759735626960,-500.24476361,0.00016438,2]
[389594061,1759735626986,-500.0,0.00016438,2]
[389594062,1759735627190,-500.0,0.00016438,2]
[389594063,1759735627227,-504.84057886,0.00016438,2]
[389594064,1759735627252,-500.0,0.00016438,2]
[389594065,1759735627277,-503.35000676,0.00016438,2]
[389594066,1759735627309,-500.0,0.00016438,2]